Cogmind - Beta 10.2 @@@ ROGUE MODE // 2022.01.10 @ 19:34:57 Player: Okkudo Result: Self-destructed Performance ------------- Evolutions (1) 500 Regions Visited (3) 600 Robots Destroyed (13) 65 Value Destroyed (358) 358 Prototype IDs (0) 0 Alien Tech Used (0) 0 Bonus (0) 0 TOTAL SCORE: 1523 Bonus ------- None Cogmind --------- Core Integrity 370/400 Matter 300/300 Energy 250/250 System Corruption 0% Temperature Cool (91) Movement Treading (160) Location -9/Materials Parts ------- > --- POWER (1) -------- Ion Engine > --- PROPULSION (3) --- Light Treads > --- UTILITY (3) ------ Small Storage Unit Small Storage Unit > --- WEAPON (2) ------- Small Laser > --- INVENTORY (8) ---- Light Ion Engine Light Nuclear Core Thermal Converter Signal Interpreter Rocket Launcher Improved Datajack Mining Laser Peak State ------------ > --- POWER ------------ Ion Engine > --- PROPULSION ------- Light Treads Light Treads > --- UTILITY ---------- Small Storage Unit Small Storage Unit > --- WEAPON ----------- Small Laser Rocket Launcher > --- INVENTORY -------- Light Ion Engine Light Nuclear Core Signal Interpreter Small Laser [Rating: 8] Favorites ----------- Power Ion Engine Engine Ion Engine Propulsion Light Treads Treads Light Treads Utility Small Storage Unit Storage Small Storage Unit Weapon Small Laser Energy Gun Small Laser Energy Cannon Beam Cannon Launcher Rocket Launcher Build | -11 -10 -10 -9 ------- Run | Scr Mat Min Mat Slots Evolved 2 | . . . 2 Power . | . . . . Propulsion 1 | . . . 1 Utility 1 | . . . 1 Weapon . | . . . . Parts Attached 12 | 6 1 5 . Power 1 | 1 . . . Engine 1 | 1 . . . Core . | . . . . Reactor . | . . . . Propulsion 2 | 2 . . . Treads 2 | 2 . . . Leg . | . . . . Wheel . | . . . . Hover . | . . . . Flight . | . . . . Utility 2 | 1 . 1 . Device . | . . . . Storage 2 | 1 . 1 . Processor . | . . . . Hackware . | . . . . Protection . | . . . . Artifact . | . . . . Weapon 7 | 2 1 4 . Energy Gun 5 | 2 . 3 . Energy Cannon 1 | . 1 . . Ballistic Gun . | . . . . Ballistic Cannon . | . . . . Launcher 1 | . . 1 . Special Weapon . | . . . . Impact Weapon . | . . . . Slashing Weapon . | . . . . Piercing Weapon . | . . . . Special Melee Weapon . | . . . . Unidentified Prototypes . | . . . . Parts Lost 4 | . . 2 2 Power . | . . . . Propulsion 1 | . . . 1 Utility . | . . . . Weapon 3 | . . 2 1 Highest Loss Streak 2 | . . 2 2 Average Slot Usage (%) 95 | . 85 97 75 Engine 13 | . 14 14 11 Treads 27 | . 28 28 20 Storage 24 | . 14 26 22 Energy Gun 23 | . 18 23 22 Energy Cannon 1 | . 9 . . Launcher 2 | . . 3 . Naked Turns . | . . . . Heaviest Build 18 | 12 14 18 15 Greatest Support 40 | 40 40 40 40 Greatest Overweight (x) . | . . . . Average Overweight (x) . | . . . . Largest Inventory Capacity 8 | 6 6 8 8 Average Capacity 7 | 5 6 7 8 Most Carried 7 | 4 5 7 7 Average Carried 4 | 1 3 4 7 Final Capacity 8 | 6 6 8 8 Final Carried 7 | 2 5 7 7 Class Distribution -------------------- 100% | Mutant Dominant Class ---------------- Mutant | -10/Materials Mutant | -10/Mines Mutant | -9/Materials Resources | -11 -10 -10 -9 ----------- Run | Scr Mat Min Mat Matter Collected 348 | 208 62 78 . Remotely . | . . . . Salvage Created 625 | . 94 461 70 Parts 29 | . 4 20 5 Haulers Intercepted . | . . . . Recyclers Shooed 3 | . . 3 . Parts Field Recycled . | . . . . Retrieved Matter . | . . . . Parts Self-Destructed . | . . . . Prevented . | . . . . Kills | -11 -10 -10 -9 ------- Run | Scr Mat Min Mat Combat Hostiles Destroyed 8 | . 2 4 2 Guns 4 | . . 2 2 Cannons 2 | . 2 . . AOE 2 | . . 2 . Classes Destroyed 6 | . 1 3 2 Builder 1 | . . 1 . Tunneler 1 | . . 1 . Recycler 3 | . . 3 . Swarmer 1 | . . . 1 Grunt 6 | . 2 4 . Sentry 1 | . . . 1 Best Kill Streak 2 | . 2 2 2 Combat Bots Only 2 | . 2 2 2 Max Kills in Single Turn 1 | . 1 1 1 Gunslinging . | . . . . Exploded 1 | . . 1 . Melee . | . . . . Uniques/NPCs Destroyed . | . . . . Combat | -11 -10 -10 -9 -------- Run | Scr Mat Min Mat Damage Taken 771 | . 294 270 207 Core 137 | . 49 58 30 Absorbed by Shields . | . . . . Core Remaining (%) 78 | 100 . 57 . Volleys Fired 55 | . 6 39 10 Largest 2 | . 2 2 2 Hottest 110 | . 110 110 80 Shots Fired 98 | . 12 66 20 Gun 87 | . 6 61 20 Cannon 8 | . 6 2 . Launcher 3 | . . 3 . Special . | . . . . Kinetic . | . . . . Thermal 95 | . 12 63 20 Explosive 3 | . . 3 . Electromagnetic . | . . . . Robot Hit Streak 10 | . 4 10 8 Robot Miss Streak 4 | . 1 4 2 Penetration Max . | . . . . Secondary Targets . | . . . . Shots Hit Robots 64 | . 10 38 16 Core Hits 26 | . 4 17 5 Critical Hits . | . . . . Critical Kills . | . . . . Critical Parts Destroyed . | . . . . Melee Attacks . | . . . . Impact . | . . . . Slashing . | . . . . Piercing . | . . . . Sneak Attacks . | . . . . Combat Hostiles . | . . . . Follow-up Attacks . | . . . . Damage Inflicted 864 | . 133 559 172 Guns 686 | . 63 451 172 Cannons 87 | . 70 17 . Explosions 91 | . . 91 . Melee . | . . . . Ramming . | . . . . Kinetic . | . . . . Thermal 773 | . 133 468 172 Explosive 91 | . . 91 . Electromagnetic . | . . . . Impact . | . . . . Slashing . | . . . . Piercing . | . . . . Highest Corruption . | . . . . Average Corruption . | . . . . Corruption Purged . | . . . . Overload Shots . | . . . . Overflow Damage . | . . . . Projectiles . | . . . . Explosions . | . . . . Melee . | . . . . Knockbacks . | . . . . Impact . | . . . . Kinetic . | . . . . Secondary . | . . . . Self-Inflicted Damage 26 | . . 26 . Shots 1 | . . 1 . Rammed . | . . . . Targets Rammed . | . . . . Kicked . | . . . . Crushed . | . . . . Highest Temperature 345 | . 345 171 85 Average Temperature 75 | . 176 58 32 Received Heat Transfer 273 | . 72 111 90 Effects 1 | . 1 . . Interference 1 | . 1 . . Siege Activations . | . . . . Robots Corrupted . | . . . . Combat Hostiles . | . . . . Parts Fried . | . . . . Impact Corruptions . | . . . . Robots Melted . | . . . . Combat Hostiles . | . . . . Parts Melted . | . . . . Heat Transferred 1842 | . 333 1109 400 Parts Sabotaged . | . . . . Parts Stolen . | . . . . Parts Stripped . | . . . . Power Chain Reactions . | . . . . Missiles Intercepted . | . . . . Alert | -11 -10 -10 -9 ------- Run | Scr Mat Min Mat Peak Influence 115 | . 73 115 65 Initial 28 | . . 28 . Average 28 | . 18 32 21 Maximum Alert Level . | . . . . Low Security (%) 100 | 100 100 100 100 Level 1 . | . . . . Level 2 . | . . . . Level 3 . | . . . . Level 4 . | . . . . Level 5 . | . . . . High Security . | . . . . Max Security . | . . . . Squads Dispatched . | . . . . Investigation . | . . . . Extermination . | . . . . Reinforcement . | . . . . Assault . | . . . . Garrison . | . . . . Intercept . | . . . . Construction Impeded . | . . . . Haulers Reinforced . | . . . . Stealth | -11 -10 -10 -9 --------- Run | Scr Mat Min Mat Distress Signals 1 | . 1 . . Communications Jammed . | . . . . Distress Signals . | . . . . Times Spotted 18 | . 7 5 6 Peak Tracking Total 5 | . 5 2 4 Tactical Retreats 1 | . . 1 . Traps | -11 -10 -10 -9 ------- Run | Scr Mat Min Mat Traps Triggered 1 | . . 1 . Indirectly . | . . . . Trap Hack Attempts . | . . . . Triggered . | . . . . Disarmed . | . . . . Reprogrammed . | . . . . Reused . | . . . . Traps Extracted . | . . . . Installed . | . . . . Triggered . | . . . . Machines | -11 -10 -10 -9 ---------- Run | Scr Mat Min Mat Machines Disabled 3 | . . 3 . Max in Single Turn 3 | . . 3 . Machines Sabotaged . | . . . . Garrisons Compromised . | . . . . Overloaded Fab Kills . | . . . . Fab Network Shutdowns . | . . . . Hacking | -11 -10 -10 -9 --------- Run | Scr Mat Min Mat Machines Accessed 3 | . 1 1 1 Terminals 2 | . 1 . 1 Fabricators . | . . . . Repair Stations . | . . . . Recycling Units . | . . . . Scanalyzers . | . . . . Garrison Access . | . . . . Total Hacks 5 | . 1 1 3 Successful 2 | . 1 1 . Failed 3 | . . . 3 Catastrophic 1 | . . . 1 Database Lockouts . | . . . . Manual 5 | . 1 . 4 Terminals 4 | . 1 . 3 Fabricators . | . . . . Repair Stations . | . . . . Recycling Units . | . . . . Scanalyzers . | . . . . Garrison Access . | . . . . Terminal Hacks 2 | . 1 1 . Open Door 1 | . . 1 . Branch Access Points 1 | . 1 . . Fabricator Hacks . | . . . . Repair Station Hacks . | . . . . Recycling Unit Hacks . | . . . . Scanalyzer . | . . . . Garrison Access Hacks . | . . . . Unauthorized Hacks . | . . . . Terminals . | . . . . Fabricators . | . . . . Repair Stations . | . . . . Recycling Units . | . . . . Scanalyzers . | . . . . Garrison Access . | . . . . Data Cores Recovered . | . . . . Used . | . . . . Hacking Detections 1 | . . . 1 Full Trace Events 1 | . . . 1 Feedback Events . | . . . . Feedback Blocked . | . . . . Robot Schematics Acquired . | . . . . Robots Built . | . . . . Matter . | . . . . Time . | . . . . Total Robot Build Rating . | . . . . Part Schematics Acquired . | . . . . Parts Built . | . . . . Matter . | . . . . Time . | . . . . Total Part Build Rating . | . . . . Parts Repaired . | . . . . Time . | . . . . Parts Recycled . | . . . . Recycled Matter . | . . . . Retrieved Matter . | . . . . Retrieved Components . | . . . . Parts Scanalyzed . | . . . . Part Schematics Acquired . | . . . . Parts Damaged . | . . . . Bothacking | -11 -10 -10 -9 ------------ Run | Scr Mat Min Mat Used RIF Installer . | . . . . Robots Hacked . | . . . . Non-combat . | . . . . Combat . | . . . . Robot Hacks Applied . | . . . . Relay Couplers Released . | . . . . Robots Rewired . | . . . . Allies Hacked . | . . . . Hacks Repelled . | . . . . Allies | -11 -10 -10 -9 -------- Run | Scr Mat Min Mat Total Allies . | . . . . Largest Group . | . . . . Highest-Rated Group . | . . . . Highest-Rated Ally . | . . . . Total Orders . | . . . . Ally Attacks . | . . . . Total Damage . | . . . . Kills . | . . . . Allies Corrupted . | . . . . Allies Melted . | . . . . Intel | -11 -10 -10 -9 ------- Run | Scr Mat Min Mat Robot Analysis Total . | . . . . Derelict Logs Recovered 1 | . . 1 . Drone Launches . | . . . . Drone Recoveries . | . . . . Exploration | -11 -10 -10 -9 ------------- Run | Scr Mat Min Mat Turns Passed 1670 | 69 183 1322 96 Spaces Moved 919 | 39 96 743 41 Core 10 | 10 . . . Treads 909 | 29 96 743 41 Legs . | . . . . Wheels . | . . . . Hover . | . . . . Flight . | . . . . Fastest Speed 50 | 50 160 160 160 Average Speed 158 | 131 160 160 160 Slowest Speed 160 | 160 160 160 160 Overloaded Moves . | . . . . Propulsion Burnouts . | . . . . Robots Hopped . | . . . . Cave-ins Triggered . | . . . . Exploration Rate (%) 34 | 4 28 99 6 Regions Visited 3 Branch Regions 1 Pre-discovered Areas 1 | . . 1 . Known Exits Taken 1 | . 1 . . Unknown Exits Taken 2 | 1 . 1 . Scrap Searched 1 | . . 1 . Spaces Dug . | . . . . Terrain Destroyed 18 | . . 18 . Melee . | . . . . Projectile . | . . . . AOE 18 | . . 18 . Terrain Rammed . | . . . . Walls Destroyed . | . . . . Machines Disabled . | . . . . Actions | -11 -10 -10 -9 --------- Run | Scr Mat Min Mat Total 1031 | 56 113 811 51 Wait 30 | 5 8 17 . Move 916 | 38 95 742 41 Hop . | . . . . Pick Up 16 | 7 3 6 . Fast Attach 1 | 1 . . . Attach 9 | 5 . 4 . Detach 1 | . . 1 . Swap 2 | . 1 1 . Drop 1 | . . 1 . Fire 55 | . 6 39 10 Melee . | . . . . Ram . | . . . . Kick . | . . . . Crush . | . . . . Escape Stasis . | . . . . Rewire . | . . . . Trap . | . . . . Miscellaneous . | . . . . Route ------- -11/Scrapyard -10/Materials -10/Mines (discovered 2 exits: *Mat x2) -9/Materials History --------- Turn | Location | Event 4 | -11/Scrapyard | Discovered new exit (range 15) 70 | -11/Scrapyard | Entered Materials 152 | -10/Materials | Identified exit to Mines 253 | -10/Materials | Entered Mines 312 | -10/Mines | Build established: Mutant 423 | -10/Mines | Discovered new exit (range 13) 620 | -10/Mines | Discovered new exit (range 7) 654 | -10/Mines | Received a Rocket Launcher from a helpful Derelict 891 | -10/Mines | Learned location of Zion (-7) 1125 | -10/Mines | Met a Derelict who couldn't figure out how to use a Trap Extractor 1575 | -10/Mines | Entered Materials 1575 | -9/Materials | Evolved 2 slots: Propulsion x1, Utility x1 1671 | -9/Materials | Self-destructed Last Messages --------------- 01135_ Acquired Imp. Datajack. 01176_ R-06 Scavenger destroyed. 01314_ R-06 Scavenger collects Com. Wheel. 01318_ R-06 Scavenger collects Ion Engine. 01321_ R-06 Scavenger collects Heat Sink. 01560_ K-01 Serf collects debris. PARAMETERS=PROPULSION_1,UTILITY_1 LOCATION=UNKNOWN GOAL=ESCAPE 01577_ 7W-WF6(g): "What?! This place again? I'm sticking with you." 01591_ Connecting with Terminal... 01591_ Current location identified: Materials 01634_ Y-45 Defender destroyed. 01651_ S-10 Pest destroyed. 01659_ R-06 Scavenger collects Lgt. Armor Plating. 01663_ R-06 Scavenger collects Lgt. Treads. 01665_ Lgt. Treads destroyed. 01666_ R-06 Scavenger collects Heat Sink. 01670_ R-06 Scavenger collects Imp. Ion Engine. 01671_ Sml. Laser destroyed. Map ----- +----------------------------------------------------+ | ???????????????????????????????????????? | | ???????????????????????????????????????? | | ???????????????????????????????????????? | | ???????????????????????????????????????? | | ???????????????????????????????????????? | | ???????????????????????????????????????? | | ???????????????????????????????????????? | | ???????????????????????????????????????? | | ???????????????????????????????????????? | | ???????????????????????????????????????? | | ???????????????????????????????????????? | | ???????????????????????????????????????? | | ???????????????????????????????????????? | | ???????????????????????????????????????? | | ???????????????????????????????????????? | | ???????????????????????????????????????? | | ???????????????????????????????????????? | | ?????#?????????????????????????????????? | | ?????# ????????????????????????????????? | | ?????# ????????????????????????????????? | | ?????# ????????????????????????????????? | | ?????# ????????????????????????????????? | | ?????#*?????#####??????????????????????? | | ?????#=###### r ### ###????????????????? | | ?????#*% Y g g + ""????????????? | | ?????# = #### @#######????????????????? | | ?????# #??#####??????????????????????? | | ?????# # #??????????????????????? | | ?????# + #??????????????????????? | | ?????# # " " #??????????????????????? | | ?????# #??R" #??????????????????????? | | ?????# #???" #??????????????????????? | | ?????# #?? ????????????????????????? | | ?????# ###/##########????????????????? | | ?????# ???????????????? | | ?????# ???????????????? | | ?????# ???????????????? | | ?????# ##############????????????????? | | ?????# # #????????????????????? | | ?????# # """ #????????????????????? | | ?????# # """"" #????????????????????? | | ?????# # """"" #????????????????????? | | ?????# + """"" #????????????????????? | | ?????# # """ #????????????????????? | | ?????# # #????????????????????? | | ?????# # #????????????????????? | | ?????# # "T" #????????????????????? | | ?????# ##########????????????????????? | | ?????#####?????????????????????????????? | | ???????????????????????????????????????? | +----------------------------------------------------+ Best States ------------- Heat Dissipation 28 Energy Generation 10 Energy Capacity 250 Matter Stores 300 Matter Capacity 300 Sight Range 16 Terrain Scan Density 10 Evasion (%) 50 Recoil Reduction 2 Item Schematics ----------------- None Robot Schematics ------------------ None Fabricated ------------ Nothing Alien Tech Used ----------------- None Achievements -------------- None Challenges ------------ None Game ------ Seed ChargeMeleeExpander Manual? 0 Play Time 00:13:44 Cumulative 23.5 hours Start 2022.01.10 @ 19:20:55 End 2022.01.10 @ 19:34:57 Sessions 1 Manual Loads 0 Difficulty Rogue Special Mode None Game No. 49 Rogue 49 Adventurer 0 Explorer 0 Win Type - Total 0 Types 0/0/0/0/0/0/0/0/0 Lore% 21 Gallery% 21 Achievement% 16 Wizard Run 0 Options --------- ASCII 0 Keyboard 0 Movement Mouse Keybinds 0 Fullscreen 1 Font 12/Terminus Map View 83x54 Tactical HUD 1 Map Filters NONE Filters NONE Steam 1 RUN: 06990383-a509-47c8-8467-551a73113b00